fUSD/lending_fUSD_20240331
["ID","MTS","AMOUNT","RATE_DAILY","PERIOD"]
[321135672,1711907467785,-818.49,0.0005589,120]
[321135673,1711907467794,-2084.69,0.0005589,120]
[321135674,1711907467804,-2318.29,0.0005589,120]
[321135675,1711907467814,-1422.03,0.0005589,120]
[321135676,1711907467824,-500.0,0.0005589,120]
[321135677,1711907467833,-500.0,0.0005589,2]
[321135678,1711907467843,-500.0,0.0005589,120]
[321135679,1711907467853,-500.0,0.0005589,120]
[321135680,1711907467864,-4939.3,0.0005589,120]
[321135681,1711907467874,-500.0,0.0005589,120]
[321135682,1711907467884,-500.0,0.0005589,120]
[321135683,1711907467894,-500.0,0.0005589,120]
[321135684,1711907467903,-500.0,0.0005589,120]
[321135685,1711907467913,-542.88,0.0005589,120]
[321135686,1711907467923,-500.0,0.0005589,120]
[321135687,1711907467933,-6488.58,0.0005589,120]
[321135688,1711907467943,-500.0,0.0005589,120]
[321135689,1711907467954,-500.0,0.0005589,120]
[321135690,1711907467964,-500.0,0.0005589,120]
[321135691,1711907467974,-3218.95,0.0005589,120]
[321135692,1711907467983,-500.0,0.0005589,120]
[321135693,1711907467993,-1667.88,0.0005589,120]
[321135694,1711907468003,-500.0,0.0005589,120]
[321135695,1711907468013,-500.0,0.0005589,120]
[321135696,1711907468023,-677.03,0.0005589,120]
[321135697,1711907468034,-513.19,0.0005589,120]
[321135698,1711907468044,-848.39,0.0005589,120]
[321135699,1711907468054,-500.0,0.0005589,120]
[321135700,1711907468063,-500.0,0.0005589,120]
[321135701,1711907468074,-2067.47,0.0005589,120]
[321135702,1711907468084,-500.0,0.0005589,120]
[321135703,1711907468093,-830.01,0.0005589,120]
[321135704,1711907468103,-500.0,0.0005589,120]
[321135705,1711907468112,-500.0,0.0005589,120]
[321135706,1711907468122,-1115.96,0.0005589,120]
[321135707,1711907468132,-500.0,0.0005589,120]
[321135708,1711907468142,-500.0,0.0005589,120]
[321135709,1711907468151,-722.46,0.0005589,120]
[321135710,1711907468161,-252.42,0.0005589,120]
[321135711,1711907468171,-500.0,0.0005589,120]
[321135712,1711907468181,-2662.12,0.0005589,120]
[321135713,1711907468191,-500.0,0.0005589,120]
[321135714,1711907468200,-714.15,0.0005589,120]
[321135715,1711907468210,-500.0,0.0005589,120]
[321135716,1711907468220,-500.0,0.0005589,120]
[321135717,1711907468229,-500.0,0.0005589,120]
[321135718,1711907468238,-500.0,0.0005589,120]
[321135719,1711907468248,-1147.71,0.0005589,120]
[321135720,1711907468257,-206.08,0.0005589,120]
[321135721,1711907468267,-500.0,0.0005589,120]
[321135722,1711907468276,-1997.29,0.0005589,120]
[321135723,1711907468286,-7535.35,0.0005589,120]
[321135724,1711907468295,-500.0,0.0005589,120]
[321135725,1711907468305,-500.0,0.0005589,120]
[321135726,1711907468315,-500.0,0.0005589,120]
[321135727,1711907468324,-500.0,0.0005589,120]
[321135728,1711907468335,-224.47436154,0.0005589,120]
[321135729,1711907468346,-3990.2,0.0005589,120]
[321135730,1711907468356,-500.0,0.0005589,120]
[321135731,1711907468366,-500.0,0.0005589,120]
[321135732,1711907468376,-2974.84,0.0005589,120]
[321135733,1711907468385,-500.0,0.0005589,120]
[321135734,1711907468395,-500.0,0.0005589,120]
[321135735,1711907468404,-500.0,0.0005589,7]
[321135736,1711907468414,-624.32,0.0005589,120]
[321135737,1711907468425,-453.74,0.0005589,120]
[321135738,1711907468434,-500.0,0.0005589,120]
[321135739,1711907468444,-500.0,0.0005589,120]
[321135740,1711907468454,-500.0,0.0005589,120]
[321135741,1711907468464,-500.0,0.0005589,120]
[321135742,1711907468473,-614.73,0.0005589,120]
[321135743,1711907468483,-500.0,0.0005589,120]
[321135744,1711907468492,-500.0,0.0005589,120]
[321135745,1711907468502,-500.0,0.0005589,120]
[321135746,1711907468512,-419.07,0.0005589,120]
[321135747,1711907468521,-500.0,0.0005589,120]
[321135748,1711907468531,-500.0,0.0005589,120]
[321135749,1711907468541,-500.0,0.0005589,120]
[321135750,1711907468551,-895.49,0.0005589,120]
[321135751,1711907468561,-744.4,0.0005589,120]
[321135752,1711907468571,-500.0,0.0005589,120]
[321135753,1711907468581,-500.0,0.0005589,120]
[321135754,1711907468591,-500.0,0.0005589,120]
[321135755,1711907468600,-500.0,0.0005589,120]
[321135756,1711907468610,-500.0,0.0005589,120]
[321135757,1711907468620,-157.6,0.00055984,120]
[321135758,1711907468630,-200.0,0.00055987,2]
[321135759,1711907468640,-161.44793174,0.00055996,120]
[321135760,1711907468650,-155.39690537,0.00056002,120]
[321135761,1711907468660,-150.54,0.00056085,120]
[321135762,1711907468670,-500.0,0.00056164,120]
[321135763,1711907468679,-500.0,0.00056164,120]
[321135764,1711907468689,-500.0,0.00056164,120]
[321135765,1711907468700,-500.0,0.00056164,120]
[321135766,1711907468709,-500.0,0.00056164,120]
[321135767,1711907468719,-500.0,0.00056164,120]
[321135768,1711907468730,-500.0,0.00056164,120]
[321135769,1711907468740,-274.24,0.00056164,120]
[321135770,1711907468753,-500.0,0.00056164,120]
[321135771,1711907468763,-500.0,0.00056164,120]
[321135772,1711907468775,-526.32,0.00056164,120]
[321135773,1711907468789,-500.0,0.00056164,120]
[321135774,1711907468799,-500.0,0.00056164,120]
[321135775,1711907468811,-377.47,0.00056164,120]
[321135776,1711907468822,-500.0,0.00056164,120]
[321135777,1711907468835,-500.0,0.00056164,120]
[321135778,1711907468846,-500.0,0.00056164,120]
[321135779,1711907468856,-541.52,0.00056164,120]
[321135780,1711907468867,-500.0,0.00056164,120]
[321135781,1711907468877,-500.0,0.00056164,120]
[321135782,1711907468903,-500.0,0.00056164,120]
[321135783,1711907468912,-700.81,0.00056164,120]
[321135784,1711907468929,-500.0,0.00056164,120]
[321135785,1711907468939,-345.25,0.00056164,120]
[321135786,1711907468949,-500.0,0.00056164,120]
[321135787,1711907468959,-555.83,0.00056164,120]
[321135788,1711907468969,-500.0,0.00056164,120]
[321135789,1711907468979,-500.0,0.00056164,120]
[321135790,1711907468989,-505.88,0.00056164,120]
[321135791,1711907468999,-253.75,0.00056164,7]
[321135792,1711907469008,-170.2,0.00056164,120]
[321135793,1711907469018,-500.0,0.00056164,120]
[321135794,1711907469028,-500.0,0.00056164,120]
[321135795,1711907469041,-500.0,0.00056164,120]
[321135796,1711907469050,-500.0,0.00056164,120]
[321135797,1711907469060,-4907.73,0.00056164,120]
[321135798,1711907469070,-500.0,0.00056164,50]
[321135799,1711907469080,-1609.87,0.00056164,120]
[321135800,1711907469090,-269.2,0.00056164,120]
[321135801,1711907469100,-500.0,0.00056164,120]
[321135802,1711907469109,-500.0,0.00056164,120]
[321135803,1711907469118,-990.64,0.00056164,120]
[321135804,1711907469128,-500.0,0.00056164,120]
[321135805,1711907469138,-500.0,0.00056164,120]
[321135806,1711907469148,-500.0,0.00056164,120]
[321135807,1711907469158,-500.0,0.00056164,120]
[321135808,1711907469168,-10457.21,0.00056164,120]
[321135809,1711907469178,-500.0,0.00056164,120]
[321135810,1711907469187,-500.0,0.00056164,120]
[321135811,1711907469313,-964.49,0.00056164,120]
[321135812,1711907469334,-323.19629164,0.00056164,120]
[321135813,1711907469345,-500.0,0.00056164,120]
[321135814,1711907469354,-500.0,0.00056164,120]
[321135815,1711907469364,-500.0,0.00056164,120]
[321135816,1711907469374,-755.7,0.00056164,120]
[321135817,1711907469384,-500.0,0.00056164,120]
[321135818,1711907469393,-722.56,0.00056164,120]
[321135819,1711907469402,-500.0,0.00056164,120]
[321135820,1711907469410,-500.0,0.00056164,120]
[321135821,1711907469421,-500.0,0.00056164,120]
[321135822,1711907469430,-500.0,0.00056164,120]
[321135823,1711907469440,-1026.37,0.00056164,120]
[321135824,1711907469449,-1126.75,0.00056164,120]
[321135825,1711907469459,-1688.27,0.00056164,21]
[321135826,1711907469468,-500.0,0.00056164,120]
[321135827,1711907469477,-500.0,0.00056164,120]
[321135828,1711907469487,-500.0,0.00056164,120]
[321135829,1711907469496,-500.0,0.00056164,120]
[321135830,1711907469505,-660.13,0.00056164,120]
[321135831,1711907469527,-500.0,0.00056164,120]
[321135832,1711907469545,-481.6,0.00056164,120]
[321135833,1711907469558,-500.0,0.00056164,120]
[321135834,1711907469567,-500.0,0.00056164,120]
[321135835,1711907469577,-500.0,0.00056164,120]
[321135836,1711907469586,-500.0,0.00056164,120]
[321135837,1711907469595,-500.0,0.00056164,120]
[321135838,1711907469605,-1092.39,0.00056164,120]
[321135839,1711907469614,-14029.33,0.00056164,120]
[321135840,1711907469623,-500.0,0.00056164,120]
[321135841,1711907469633,-1975.75,0.00056164,120]
[321135842,1711907469642,-500.0,0.00056164,120]
[321135843,1711907469652,-500.0,0.00056164,120]
[321135844,1711907469666,-500.0,0.00056164,120]
[321135845,1711907469680,-500.0,0.00056164,120]
[321135846,1711907469689,-500.0,0.00056164,120]
[321135847,1711907469699,-500.0,0.00056164,120]
[321135848,1711907469709,-500.0,0.00056164,120]
[321135849,1711907469718,-10099.07,0.00056164,120]
[321135850,1711907469728,-546.81,0.00056164,120]
[321135851,1711907469738,-500.0,0.00056164,120]
[321135852,1711907469747,-500.0,0.00056164,120]
[321135853,1711907469757,-500.0,0.00056164,120]
[321135854,1711907469776,-500.0,0.00056164,120]
[321135855,1711907469794,-500.0,0.00056164,120]
[321135856,1711907469805,-500.0,0.00056164,120]
[321135857,1711907469815,-442.4,0.00056164,120]
[321135858,1711907469825,-500.0,0.00056164,120]
[321135859,1711907469835,-500.0,0.00056164,120]
[321135860,1711907469845,-500.0,0.00056164,120]
[321135861,1711907469856,-187.51232503,0.00056164,120]
[321135862,1711907469866,-500.0,0.00056164,120]
[321135863,1711907469875,-500.0,0.00056164,120]
[321135864,1711907469885,-500.0,0.00056164,120]
[321135865,1711907469895,-500.0,0.00056164,120]
[321135866,1711907469904,-500.0,0.00056164,120]
[321135867,1711907469914,-500.0,0.00056164,120]
[321135868,1711907469923,-5131.78,0.00056164,120]
[321135869,1711907469932,-500.0,0.00056164,120]
[321135870,1711907469941,-1715.12,0.00056164,120]
[321135871,1711907469951,-411.66,0.00056164,120]
[321135872,1711907469961,-500.0,0.00056164,120]
[321135873,1711907469971,-241.93350599,0.00056164,120]
[321135874,1711907469981,-500.0,0.00056164,120]
[321135875,1711907469991,-500.0,0.00056164,120]
[321135876,1711907470001,-500.0,0.00056164,120]
[321135877,1711907470011,-500.0,0.00056164,120]
[321135878,1711907470021,-500.0,0.00056164,120]
[321135879,1711907470031,-626.85,0.00056164,120]
[321135880,1711907470041,-947.24,0.00056164,120]
[321135881,1711907470051,-500.0,0.00056164,120]
[321135882,1711907470060,-500.0,0.00056164,120]
[321135883,1711907470069,-500.0,0.00056164,120]
[321135884,1711907470079,-500.0,0.00056164,120]
[321135885,1711907470088,-500.0,0.00056164,120]
[321135886,1711907470098,-649.68,0.00056164,120]
[321135887,1711907470108,-500.0,0.00056164,120]
[321135888,1711907470117,-500.0,0.00056164,120]
[321135889,1711907470127,-6434.68,0.00056164,120]
[321135890,1711907470137,-916.81,0.00056164,120]
[321135891,1711907470147,-522.38,0.00056164,120]
[321135892,1711907470157,-500.0,0.00056164,120]
[321135893,1711907470167,-2281.86,0.00056164,120]
[321135894,1711907470176,-500.0,0.00056164,120]
[321135895,1711907470185,-500.0,0.00056164,120]
[321135896,1711907470196,-1094.52,0.00056164,120]
[321135897,1711907470205,-1655.18,0.00056164,120]
[321135898,1711907470215,-531.28,0.00056164,120]
[321135899,1711907470224,-1439.29,0.00056164,120]
[321135900,1711907470234,-500.0,0.00056164,120]
[321135901,1711907470243,-500.0,0.00056164,120]
[321135902,1711907470255,-1210.67,0.00056164,120]
[321135903,1711907470264,-627.19,0.00056164,120]
[321135904,1711907470274,-2658.74,0.00056164,120]
[321135905,1711907470284,-500.0,0.00056164,120]
[321135906,1711907470294,-3592.37,0.00056164,120]
[321135907,1711907470303,-500.0,0.00056164,120]
[321135908,1711907470313,-500.0,0.00056164,120]
[321135909,1711907470322,-500.0,0.00056164,120]
[321135910,1711907470333,-611.83,0.00056164,120]
[321135911,1711907470346,-500.0,0.00056164,120]
[321135912,1711907470356,-500.0,0.00056164,120]
[321135913,1711907470366,-500.0,0.00056164,120]
[321135914,1711907470376,-1276.31,0.00056164,120]
[321135915,1711907470386,-500.0,0.00056164,120]
[321135916,1711907470395,-500.0,0.00056164,120]
[321135917,1711907470404,-2818.95,0.00056164,120]
[321135918,1711907470414,-577.42,0.00056164,120]
[321135919,1711907470424,-500.0,0.00056164,120]
[321135920,1711907470434,-1477.96,0.00056164,120]
[321135921,1711907470443,-1654.56,0.00056164,120]
[321135922,1711907470452,-591.88,0.00056164,120]
[321135923,1711907470462,-451.08,0.00056164,120]
[321135924,1711907470471,-399.67,0.00056164,120]
[321135925,1711907470481,-811.9,0.00056164,120]
[321135926,1711907470490,-500.0,0.00056164,120]
[321135927,1711907470499,-1667.23,0.00056164,120]
[321135928,1711907470509,-540.65,0.00056164,120]
[321135929,1711907470518,-197.843539,0.00056164,120]
[321135930,1711907470527,-500.0,0.00056164,120]
[321135931,1711907470537,-197.843539,0.00056164,120]
[321135932,1711907470547,-500.0,0.00056164,120]
[321135933,1711907470557,-500.0,0.00056164,120]
[321135934,1711907470568,-500.0,0.00056164,120]
[321135935,1711907470578,-500.0,0.00056164,120]
[321135936,1711907470588,-718.34,0.00056164,120]
[321135937,1711907470598,-500.0,0.00056164,120]
[321135938,1711907470608,-1412.62,0.00056164,120]
[321135939,1711907470617,-505.8,0.00056164,120]
[321135940,1711907470626,-2163.44,0.00056164,120]
[321135941,1711907470636,-500.0,0.00056164,120]
[321135942,1711907470645,-500.0,0.00056164,120]
[321135943,1711907470654,-231.46037652,0.00056164,120]
[321135944,1711907470664,-4640.93,0.00056164,120]
[321135945,1711907470673,-2308.94,0.00056164,120]
[321135946,1711907470682,-4439.46,0.00056164,120]
[321135947,1711907470692,-634.82175384,0.00056164,120]
[321135948,1711907470701,-500.0,0.00056164,120]
[321135949,1711907470710,-713.74,0.00056164,120]
[321135950,1711907470720,-574.37,0.00056164,120]
[321135951,1711907470730,-371.68,0.00056164,120]
[321135952,1711907470740,-176.4,0.00056164,120]
[321135953,1711907470749,-818.49,0.00056164,120]
[321135954,1711907470758,-2084.69,0.00056164,120]
[321135955,1711907470768,-2318.29,0.00056164,120]
[321135956,1711907470777,-1422.03,0.00056164,120]
[321135957,1711907470787,-500.0,0.00056164,120]
[321135958,1711907470796,-500.0,0.00056164,2]
[321135959,1711907470805,-500.0,0.00056164,120]
[321135960,1711907470817,-4939.3,0.00056164,120]
[321135961,1711907470827,-500.0,0.00056164,120]
[321135962,1711907470837,-500.0,0.00056164,120]
[321135963,1711907470847,-500.0,0.00056164,120]
[321135964,1711907470856,-500.0,0.00056164,120]
[321135965,1711907470866,-500.0,0.00056164,120]
[321135966,1711907470876,-500.0,0.00056164,120]
[321135967,1711907470886,-6488.58,0.00056164,120]
[321135968,1711907470895,-500.0,0.00056164,120]
[321135969,1711907470905,-500.0,0.00056164,120]
[321135970,1711907470914,-500.0,0.00056164,120]
[321135971,1711907470924,-3218.95,0.00056164,120]
[321135972,1711907470933,-607.58,0.00056164,120]
[321135973,1711907470943,-1667.88,0.00056164,120]
[321135974,1711907470953,-261.83,0.00056164,120]
[321135975,1711907470962,-265.00948617,0.00056164,120]
[321135976,1711907470972,-677.03,0.00056164,120]
[321135977,1711907470982,-513.19,0.00056164,120]
[321135978,1711907470996,-848.39,0.00056164,120]
[321135979,1711907471005,-589.91419204,0.00056164,120]
[321135980,1711907471015,-2067.47,0.00056164,120]
[321135981,1711907471024,-500.0,0.00056164,120]
[321135982,1711907471033,-830.01,0.00056164,120]
[321135983,1711907471043,-500.0,0.00056164,120]
[321135984,1711907471053,-500.0,0.00056164,120]
[321135985,1711907471063,-1115.96,0.00056164,120]
[321135986,1711907471073,-504.21489185,0.00056164,120]
[321135987,1711907471083,-336.62957728,0.00056164,120]
[321135988,1711907471093,-500.0,0.00056164,120]
[321135989,1711907471102,-722.46,0.00056164,120]
[321135990,1711907471112,-2662.12,0.00056164,120]
[321135991,1711907471122,-500.0,0.00056164,120]
[321135992,1711907471131,-216.88,0.00056164,120]
[321135993,1711907471141,-714.15,0.00056164,120]
[321135994,1711907471151,-500.0,0.00056164,120]
[321135995,1711907471160,-500.0,0.00056164,120]
[321135996,1711907471170,-500.0,0.00056164,120]
[321135997,1711907471180,-592.91083546,0.00056164,120]
[321135998,1711907471190,-1147.71,0.00056164,120]
[321135999,1711907471200,-1997.29,0.00056164,120]
[321136000,1711907471209,-7535.35,0.00056164,120]
[321136001,1711907471219,-500.0,0.00056164,120]
[321136002,1711907471229,-500.0,0.00056164,120]
[321136003,1711907471238,-500.0,0.00056164,120]
[321136004,1711907471248,-500.0,0.00056164,120]
[321136005,1711907471258,-3990.2,0.00056164,120]
[321136006,1711907471267,-500.0,0.00056164,120]
[321136007,1711907471278,-500.0,0.00056164,120]
[321136008,1711907471288,-2974.84,0.00056164,120]
[321136009,1711907471297,-500.0,0.00056164,120]
[321136010,1711907471307,-500.0,0.00056164,120]
[321136011,1711907471317,-500.0,0.00056164,7]
[321136012,1711907471327,-624.32,0.00056164,120]
[321136013,1711907471449,-500.0,0.00056164,120]
[321136014,1711907471460,-500.0,0.00056164,120]
[321136015,1711907471471,-500.0,0.00056164,120]
[321136016,1711907471481,-500.0,0.00056164,120]
[321136017,1711907471491,-614.73,0.00056164,120]
[321136018,1711907471500,-500.0,0.00056164,120]
[321136019,1711907471510,-500.0,0.00056164,120]
[321136020,1711907471521,-500.0,0.00056164,120]
[321136021,1711907471531,-500.0,0.00056164,120]
[321136022,1711907471540,-500.0,0.00056164,120]
[321136023,1711907471549,-500.0,0.00056164,120]
[321136024,1711907471559,-895.49,0.00056164,120]
[321136025,1711907471568,-744.4,0.00056164,120]
[321136026,1711907471578,-500.0,0.00056164,120]
[321136027,1711907471587,-500.0,0.00056164,120]
[321136028,1711907471596,-500.0,0.00056164,120]
[321136029,1711907471605,-500.0,0.00056164,120]
[321136030,1711907471614,-177.46,0.00056164,120]
[321136031,1711907471624,-1001.7,0.0005623,2]
[321136032,1711907471633,-2285.8,0.00056265,117]
[321136033,1711907471642,-155.39690537,0.00056282,120]
[321136034,1711907471652,-155.39690537,0.00056304,120]
[321136035,1711907471661,-157.30690024,0.00056328,120]
[321136036,1711907471670,-151.0,0.00056384,120]
[321136037,1711907471680,-333.4,0.00056438,120]
[321136038,1711907471689,-500.0,0.00056438,120]
[321136039,1711907471698,-500.0,0.00056438,120]
[321136040,1711907471707,-531.08,0.00056438,120]
[321136041,1711907471717,-500.0,0.00056438,120]
[321136042,1711907471727,-500.0,0.00056438,120]
[321136043,1711907471737,-500.0,0.00056438,120]
[321136044,1711907471748,-416.35,0.00056438,120]
[321136045,1711907471757,-514.54,0.00056438,120]
[321136046,1711907471767,-153.87,0.00056438,120]
[321136047,1711907471777,-272.5,0.00056438,120]
[321136048,1711907471787,-595.34,0.00056438,120]
[321136049,1711907471797,-500.0,0.00056438,120]
[321136050,1711907471806,-279.55,0.00056438,120]
[321136051,1711907471817,-500.0,0.00056438,120]
[321136052,1711907471826,-500.0,0.00056438,120]
[321136053,1711907471835,-500.0,0.00056438,120]
[321136054,1711907471844,-500.0,0.00056438,120]
[321136055,1711907471854,-700.81,0.00056438,120]
[321136056,1711907471864,-500.0,0.00056438,120]
[321136057,1711907471873,-500.0,0.00056438,120]
[321136058,1711907471883,-500.0,0.00056438,120]
[321136059,1711907471892,-500.0,0.00056438,120]
[321136060,1711907471902,-505.88,0.00056438,120]
[321136061,1711907471912,-500.0,0.00056438,120]
[321136062,1711907471921,-500.0,0.00056438,120]
[321136063,1711907471930,-500.0,0.00056438,120]
[321136064,1711907471939,-500.0,0.00056438,120]
[321136065,1711907471950,-4907.73,0.00056438,120]
[321136066,1711907471960,-500.0,0.00056438,50]
[321136067,1711907471970,-1609.87,0.00056438,120]
[321136068,1711907471980,-500.0,0.00056438,120]
[321136069,1711907471989,-500.0,0.00056438,120]
[321136070,1711907471999,-990.64,0.00056438,120]
[321136071,1711907472009,-500.0,0.00056438,120]
[321136072,1711907472019,-500.0,0.00056438,120]
[321136073,1711907472028,-500.0,0.00056438,120]
[321136074,1711907472038,-500.0,0.00056438,120]
[321136075,1711907472048,-10457.21,0.00056438,120]
[321136076,1711907472057,-500.0,0.00056438,120]
[321136077,1711907472067,-500.0,0.00056438,120]
[321136078,1711907472076,-964.49,0.00056438,120]
[321136079,1711907472086,-500.0,0.00056438,120]
[321136080,1711907472095,-500.0,0.00056438,120]
[321136081,1711907472105,-500.0,0.00056438,120]
[321136082,1711907472115,-755.7,0.00056438,120]
[321136083,1711907472125,-500.0,0.00056438,120]
[321136084,1711907472134,-722.56,0.00056438,120]
[321136085,1711907472144,-500.0,0.00056438,120]
[321136086,1711907472153,-500.0,0.00056438,120]
[321136087,1711907472162,-500.0,0.00056438,120]
[321136088,1711907472172,-500.0,0.00056438,120]
[321136089,1711907472185,-1026.37,0.00056438,120]
[321136090,1711907472195,-1126.75,0.00056438,120]
[321136091,1711907472205,-1688.27,0.00056438,21]
[321136092,1711907472214,-500.0,0.00056438,120]
[321136093,1711907472223,-500.0,0.00056438,120]
[321136094,1711907472233,-500.0,0.00056438,120]
[321136095,1711907472243,-500.0,0.00056438,120]
[321136096,1711907472252,-660.13,0.00056438,120]
[321136097,1711907472262,-215.45,0.00056438,120]
[321136098,1711907472271,-500.0,0.00056438,120]
[321136099,1711907472281,-500.0,0.00056438,120]
[321136100,1711907472290,-500.0,0.00056438,120]
[321136101,1711907472300,-500.0,0.00056438,120]
[321136102,1711907472309,-500.0,0.00056438,120]
[321136103,1711907472319,-1092.39,0.00056438,120]
[321136104,1711907472329,-14029.33,0.00056438,120]
[321136105,1711907472343,-500.0,0.00056438,120]
[321136106,1711907472353,-1975.75,0.00056438,120]
[321136107,1711907472362,-500.0,0.00056438,120]
[321136108,1711907472372,-500.0,0.00056438,120]
[321136109,1711907472382,-500.0,0.00056438,120]
[321136110,1711907472392,-500.0,0.00056438,120]
[321136111,1711907472402,-500.0,0.00056438,120]
[321136112,1711907472411,-500.0,0.00056438,120]
[321136113,1711907472422,-500.0,0.00056438,120]
[321136114,1711907472432,-10099.07,0.00056438,120]
[321136115,1711907472442,-546.81,0.00056438,120]
[321136116,1711907472452,-500.0,0.00056438,120]
[321136117,1711907472461,-500.0,0.00056438,120]
[321136118,1711907472471,-500.0,0.00056438,120]
[321136119,1711907472480,-500.0,0.00056438,120]
[321136120,1711907472489,-500.0,0.00056438,120]
[321136121,1711907472498,-500.0,0.00056438,120]
[321136122,1711907472509,-500.0,0.00056438,120]
[321136123,1711907472519,-500.0,0.00056438,120]
[321136124,1711907472529,-500.0,0.00056438,120]
[321136125,1711907472539,-254.46,0.00056438,120]
[321136126,1711907472549,-500.0,0.00056438,120]
[321136127,1711907472559,-500.0,0.00056438,120]
[321136128,1711907472569,-500.0,0.00056438,120]
[321136129,1711907472579,-500.0,0.00056438,120]
[321136130,1711907472588,-5131.78,0.00056438,120]
[321136131,1711907472598,-500.0,0.00056438,120]
[321136132,1711907472607,-1715.12,0.00056438,120]
[321136133,1711907472617,-500.0,0.00056438,120]
[321136134,1711907472626,-500.0,0.00056438,120]
[321136135,1711907472635,-500.0,0.00056438,120]
[321136136,1711907472646,-500.0,0.00056438,120]
[321136137,1711907472656,-500.0,0.00056438,120]
[321136138,1711907472665,-500.0,0.00056438,120]
[321136139,1711907472674,-626.85,0.00056438,120]
[321136140,1711907472684,-947.24,0.00056438,120]
[321136141,1711907472693,-500.0,0.00056438,120]
[321136142,1711907472703,-500.0,0.00056438,120]
[321136143,1711907472712,-500.0,0.00056438,120]
[321136144,1711907472722,-500.0,0.00056438,120]
[321136145,1711907472731,-500.0,0.00056438,120]
[321136146,1711907472740,-649.68,0.00056438,120]
[321136147,1711907472749,-500.0,0.00056438,120]
[321136148,1711907472759,-500.0,0.00056438,120]
[321136149,1711907472769,-6434.68,0.00056438,120]
[321136150,1711907472778,-916.81,0.00056438,120]
[321136151,1711907472788,-552.0,0.00056438,120]
[321136152,1711907472797,-2281.86,0.00056438,120]
[321136153,1711907472806,-500.0,0.00056438,120]
[321136154,1711907472817,-500.0,0.00056438,120]
[321136155,1711907472826,-1094.52,0.00056438,120]
[321136156,1711907472836,-1655.18,0.00056438,120]
[321136157,1711907472845,-531.28,0.00056438,120]
[321136158,1711907472854,-1439.29,0.00056438,120]
[321136159,1711907472864,-500.0,0.00056438,120]
[321136160,1711907472874,-500.0,0.00056438,120]
[321136161,1711907472884,-1210.67,0.00056438,120]
[321136162,1711907472893,-627.19,0.00056438,120]
[321136163,1711907472903,-2658.74,0.00056438,120]
[321136164,1711907472912,-500.0,0.00056438,120]
[321136165,1711907472922,-3592.37,0.00056438,120]
[321136166,1711907472931,-561.72495094,0.00056438,120]
[321136167,1711907472940,-500.0,0.00056438,120]
[321136168,1711907472949,-500.0,0.00056438,120]
[321136169,1711907472958,-611.83,0.00056438,120]
[321136170,1711907472967,-500.0,0.00056438,120]
[321136171,1711907472977,-500.0,0.00056438,120]